bitfinex/quotes_BTCUSD_20220105
["timestamp","ask_amount","ask_price","bid_price","bid_amount"]
[1641354684395,0.05902304,46511.0,46508.0,0.01769801]
[1641354685197,0.00525004,46511.0,46508.0,0.01769801]
[1641354685496,0.00125004,46511.0,46508.0,0.00069801]
[1641354685696,0.30727905,46514.0,46508.0,0.00069801]
[1641354686100,0.053771,46512.0,46508.0,0.00069801]
[1641354686350,0.053771,46512.0,46508.0,0.01769801]
[1641354687553,0.048771,46512.0,46508.0,0.00069801]
[1641354688151,0.053773,46510.0,46508.0,0.00069801]
[1641354688351,0.053773,46510.0,46508.0,0.03869801]
[1641354689451,0.053773,46510.0,46508.0,0.00069801]
[1641354690301,0.053773,46510.0,46508.0,0.04469801]
[1641354691600,0.053773,46510.0,46508.0,0.00069801]
[1641354692402,0.053773,46510.0,46508.0,0.04769801]
[1641354693500,0.053773,46510.0,46508.0,0.00069801]
[1641354694347,0.053773,46510.0,46508.0,0.04569801]
[1641354695648,0.053773,46510.0,46508.0,0.00069801]
[1641354696250,0.066773,46510.0,46508.0,0.00769801]
[1641354697694,0.053773,46510.0,46508.0,0.00069801]
[1641354698395,0.068773,46510.0,46508.0,0.00669801]
[1641354699496,0.053773,46510.0,46508.0,0.00069801]
[1641354700396,0.053773,46510.0,46508.0,0.00769801]
[1641354700397,0.067773,46510.0,46508.0,0.00769801]
[1641354701343,0.014,46510.0,46508.0,0.00769801]
[1641354701548,0.00050219,46511.0,46508.0,0.00069801]
[1641354702345,0.01350219,46511.0,46508.0,0.00769801]
[1641354702843,0.12104747,46511.0,46508.0,0.00769801]
[1641354703645,0.05427547,46511.0,46508.0,0.00069801]
[1641354704044,0.053773,46510.0,46508.0,0.00069801]
[1641354704248,0.1075484,46510.0,46508.0,0.01169801]
[1641354705202,0.30481474,46509.0,46508.0,0.01169801]
[1641354706299,0.30581474,46509.0,46508.0,0.01969801]
[1641354706702,0.001,46509.0,46508.0,0.01969801]
[1641354707601,0.053773,46510.0,46508.0,0.01969801]
[1641354707602,0.053773,46510.0,46508.0,0.00069801]
[1641354708403,0.061773,46510.0,46508.0,0.01169801]
[1641354708848,0.6111849,46509.0,46508.0,0.01169801]
[1641354710250,0.2563699,46509.0,46508.0,0.00069801]
[1641354710450,0.2683699,46509.0,46508.0,0.00069801]
[1641354711650,0.2563699,46509.0,46508.0,0.00069801]
[1641354712252,0.2563699,46509.0,46508.0,0.00269801]
[1641354712452,0.2673699,46509.0,46508.0,0.00269801]
[1641354713600,2.39930199,46507.0,46501.0,0.053778]
[1641354713802,0.2885221,46503.0,46501.0,0.053778]
[1641354714002,0.2885221,46503.0,46499.0,0.287]
[1641354714003,0.2885221,46503.0,46502.0,0.354815]
[1641354714800,0.053781,46507.0,46502.0,0.354815]
[1641354715000,0.1075628,46509.0,46502.0,0.354815]
[1641354715202,0.1075628,46509.0,46501.0,0.079]
[1641354715401,0.053782,46507.0,46501.0,0.079]
[1641354715601,0.05378082,46504.0,46502.0,0.354815]
[1641354716449,0.05378082,46504.0,46502.0,0.427815]
[1641354717050,0.053782,46503.0,46502.0,0.427815]
[1641354717452,0.31454285,46503.0,46502.0,0.073]
[1641354717652,0.31454285,46503.0,46497.0,0.0012294]
[1641354717850,0.05378538,46501.0,46498.0,0.354815]
[1641354718052,0.10757,46504.0,46497.0,0.053783]
[1641354718255,0.04869938,46505.0,46497.0,0.053783]
[1641354718451,0.007,46501.0,46498.0,0.011]
[1641354718650,0.007,46501.0,46499.0,0.354815]
[1641354719653,0.053783,46502.0,46499.0,0.354815]
[1641354719859,0.053783,46502.0,46498.0,0.053781]
[1641354720123,0.05378072,46504.0,46499.0,0.354815]
[1641354720124,0.05378,46504.0,46499.0,0.354815]
[1641354720320,0.04869938,46505.0,46499.0,0.354815]
[1641354721322,0.04869938,46505.0,46500.0,0.053779]
[1641354721521,0.10247838,46505.0,46498.0,0.021]
[1641354721722,0.10247838,46505.0,46496.0,0.05]
[1641354721920,0.10247838,46505.0,46497.0,0.354815]
[1641354722122,0.10247838,46505.0,46497.0,0.404815]
[1641354722721,0.101979,46505.0,46497.0,0.404815]
[1641354722922,0.101979,46505.0,46498.0,0.053781]
[1641354723322,0.101979,46505.0,46496.0,0.016]
[1641354723521,0.101979,46505.0,46497.0,0.354815]
[1641354723739,0.101979,46505.0,46494.0,0.3472]
[1641354723956,0.101979,46505.0,46495.0,0.354815]
[1641354724854,0.00050227,46502.0,46495.0,0.354815]
[1641354725257,0.053784,46500.0,46495.0,0.354815]
[1641354725654,0.053784,46500.0,46496.0,0.053784]
[1641354725856,0.053784,46500.0,46497.0,0.277733]
[1641354726458,0.053784,46500.0,46497.0,0.296733]
[1641354727260,0.053783,46501.0,46497.0,0.350516]
[1641354727706,0.053783,46501.0,46497.0,0.277733]
[1641354727903,0.31784861,46501.0,46497.0,0.277733]
[1641354728302,0.31784861,46501.0,46497.0,0.295733]
[1641354729104,0.053786,46499.0,46497.0,0.295733]
[1641354729705,0.053786,46499.0,46497.0,0.277733]
[1641354730506,0.053786,46499.0,46497.0,0.295733]
[1641354731749,0.053786,46499.0,46497.0,0.277733]
[1641354732350,0.053786,46499.0,46497.0,0.298733]
[1641354734450,0.00118749,46498.0,46497.0,0.320733]
[1641354735701,0.00118749,46498.0,46497.0,0.277733]
[1641354737703,0.00118749,46498.0,46497.0,0.299733]
[1641354738504,0.00118749,46498.0,46497.0,0.322733]
[1641354739649,0.00118749,46498.0,46497.0,0.277733]
[1641354741753,0.00118749,46498.0,46497.0,0.52739114]
[1641354742454,0.00118749,46498.0,46497.0,0.55139114]
[1641354743300,0.00118749,46498.0,46497.0,0.301733]
[1641354743698,0.00118749,46498.0,46497.0,0.277733]
[1641354744100,0.00118749,46498.0,46497.0,0.52794473]
[1641354744397,0.00118749,46498.0,46497.0,0.55194473]
[1641354745599,0.00118749,46498.0,46497.0,0.52794473]
[1641354746462,0.00118749,46498.0,46497.0,0.55194473]
[1641354748065,0.00118749,46498.0,46497.0,0.301733]
[1641354748472,0.00118749,46498.0,46497.0,0.300733]
[1641354749667,0.00118749,46498.0,46497.0,0.277733]
[1641354750501,0.00118749,46498.0,46497.0,0.304733]
[1641354752507,0.00118749,46498.0,46497.0,0.331733]
[1641354753612,0.00118749,46498.0,46497.0,0.304733]
[1641354753849,0.00118749,46498.0,46497.0,0.277733]
[1641354754449,0.00118749,46498.0,46497.0,0.304733]
[1641354755652,0.00118749,46498.0,46497.0,0.277733]
[1641354756452,0.00118749,46498.0,46497.0,0.305733]
[1641354757708,0.00118749,46498.0,46497.0,0.277733]
[1641354758507,0.00118749,46498.0,46497.0,0.305733]
[1641354759706,0.00118749,46498.0,46497.0,0.277733]
[1641354760509,0.00118749,46498.0,46497.0,0.305733]
[1641354761756,0.00118749,46498.0,46497.0,0.277733]
[1641354762451,0.00118749,46498.0,46497.0,0.304733]
[1641354763654,0.00118749,46498.0,46497.0,0.277733]
[1641354764454,0.00118749,46498.0,46497.0,0.288733]
[1641354765501,0.00118749,46498.0,46497.0,0.283733]
[1641354765800,0.00118749,46498.0,46497.0,0.732733]
[1641354766401,0.00118749,46498.0,46497.0,0.747733]
[1641354768304,0.00118749,46498.0,46497.0,0.732733]
[1641354768505,0.00118749,46498.0,46497.0,0.752733]
[1641354769649,0.00118749,46498.0,46497.0,0.732733]
[1641354770453,0.00118749,46498.0,46497.0,0.752733]
[1641354771150,0.00118749,46498.0,46497.0,0.292733]
[1641354771552,0.00118749,46498.0,46497.0,0.862733]
[1641354771756,0.00118749,46498.0,46497.0,0.842733]
[1641354772626,0.00118749,46498.0,46497.0,0.861733]
[1641354773628,0.00118749,46498.0,46497.0,0.272733]
[1641354774435,0.25753916,46498.0,46497.0,0.291733]
[1641354774631,0.30573916,46498.0,46497.0,0.019]
[1641354775032,0.32911313,46498.0,46497.0,0.019]
[1641354775234,0.68387013,46498.0,46497.0,0.019]
[1641354775436,0.66173049,46498.0,46497.0,0.019]
[1641354775633,1.54518393,46498.0,46483.0,0.9965]
[1641354775834,0.354757,46497.0,46483.0,0.9965]
[1641354776033,0.31289178,46488.0,46483.0,0.9965]
[1641354776233,0.28635811,46487.0,46483.0,0.9965]
[1641354776456,0.28635811,46487.0,46481.0,0.053802]
[1641354776657,0.28635811,46487.0,46478.0,0.2902]
[1641354776658,0.00122413,46486.0,46478.0,0.2902]
[1641354776856,0.0482,46485.0,46478.0,0.2902]
[1641354777060,0.053807,46482.0,46478.0,0.344006]
[1641354777356,0.30468018,46481.0,46476.0,0.5746]
[1641354777557,0.30468018,46481.0,46471.0,0.7754]
[1641354777558,0.25930193,46473.0,46471.0,0.7754]
[1641354777755,0.25930193,46473.0,46472.0,0.354757]
[1641354777756,0.30750193,46473.0,46472.0,0.354757]
[1641354777957,0.0482,46473.0,46472.0,0.354757]
[1641354778156,0.0482,46473.0,46468.0,0.000538]
[1641354778355,0.0482,46473.0,46469.0,0.354757]
[1641354778555,0.00121332,46477.0,46470.0,0.05380965]
[1641354778756,0.0482,46478.0,46469.0,0.161427]
[1641354779155,0.0482,46478.0,46469.0,0.265234]
[1641354779555,0.0482,46478.0,46470.0,0.354757]
[1641354779761,0.0482,46478.0,46473.0,0.053808]
[1641354779955,0.0482,46478.0,46474.0,0.273161]
[1641354780209,0.0482,46478.0,46474.0,0.32696572]
[1641354780510,0.0482,46478.0,46474.0,0.273161]
[1641354780911,0.00118805,46477.0,46474.0,0.273161]
[1641354781509,0.00118805,46477.0,46475.0,0.10761049]
[1641354781708,0.00118805,46477.0,46476.0,0.354709]
[1641354782509,0.28740384,46485.0,46476.0,0.354709]
[1641354782710,0.25640233,46484.0,46477.0,0.05380143]
[1641354782910,0.25640233,46484.0,46477.0,0.04880143]
[1641354783310,0.25640233,46484.0,46478.0,0.053804]
[1641354783513,0.25640233,46484.0,46473.0,0.05]
[1641354783710,0.25640233,46484.0,46471.0,0.0012169]
[1641354784361,0.31020633,46484.0,46476.0,0.053806]
[1641354784660,0.41020633,46484.0,46476.0,0.053806]
[1641354785061,0.40870633,46484.0,46476.0,0.053806]
[1641354785262,0.62870633,46484.0,46476.0,0.053806]
[1641354785660,0.62870633,46484.0,46474.0,0.053808]
[1641354785861,0.62870633,46484.0,46473.0,0.05]
[1641354786161,0.52870633,46484.0,46471.0,2.03134274]
[1641354786361,0.00118797,46483.0,46471.0,2.03134274]
[1641354786662,0.05499297,46483.0,46472.0,0.10761]
[1641354786861,0.05499297,46483.0,46472.0,0.15761]
[1641354787904,0.05499297,46483.0,46476.0,0.053805]
[1641354788304,0.05499297,46483.0,46476.0,0.103805]
[1641354788705,0.05499297,46483.0,46476.0,0.053805]
[1641354789007,0.00050031,46482.0,46477.0,0.05380105]
[1641354789206,0.00050031,46482.0,46476.0,0.103805]
[1641354789604,0.00050031,46482.0,46476.0,0.053805]
[1641354789805,0.05430631,46482.0,46474.0,0.053808]
[1641354790206,0.05430631,46482.0,46473.0,0.05]
[1641354790405,0.05430631,46482.0,46471.0,0.0012169]
[1641354791207,0.05430631,46482.0,46471.0,0.05502531]
[1641354791457,0.05430631,46482.0,46472.0,2.24539173]
[1641354791653,0.05430631,46482.0,46474.0,0.053809]
[1641354791853,0.05430631,46482.0,46472.0,2.24539173]
[1641354791854,0.053812,46477.0,46472.0,2.24539173]
[1641354792054,0.00118804,46481.0,46473.0,0.354757]
[1641354792858,0.00118804,46481.0,46473.0,0.408567]
[1641354793256,0.053809,46480.0,46473.0,0.408567]
[1641354793857,0.053809,46480.0,46473.0,0.458567]
[1641354794456,0.053809,46480.0,46473.0,0.10381]
[1641354795326,0.053809,46480.0,46473.0,0.05381]
[1641354795924,0.053809,46480.0,46474.0,0.354757]
[1641354796122,0.053809,46480.0,46475.0,0.053808]
[1641354796624,0.057809,46480.0,46475.0,0.053808]
[1641354796923,0.05830079,46480.0,46471.0,0.05502591]
[1641354797123,0.05830079,46480.0,46473.0,0.05381]
[1641354797322,0.00118801,46479.0,46474.0,0.273144]
[1641354797723,0.05381,46478.0,46474.0,0.273144]
[1641354800661,0.00118801,46479.0,46474.0,0.273144]
[1641354801863,0.05499901,46479.0,46470.0,0.0118373]
[1641354804806,0.00049471,46477.0,46470.0,0.0656523]
[1641354805209,0.053816,46475.0,46470.0,0.0656523]
[1641354805808,0.053816,46475.0,46471.0,0.354757]
[1641354806454,0.053816,46475.0,46470.0,0.053815]
[1641354806757,0.053816,46475.0,46471.0,0.354757]
[1641354806957,0.05049471,46477.0,46472.0,0.053812]
[1641354807158,0.05049471,46477.0,46468.0,2.32515932]
[1641354807357,0.00049471,46477.0,46469.0,0.354757]
[1641354808058,0.00049471,46477.0,46471.0,0.053813]
[1641354808264,0.00049471,46477.0,46468.0,2.32515932]
[1641354808557,0.00049471,46477.0,46469.0,0.60649498]
[1641354809157,0.05430771,46477.0,46469.0,0.60649498]
[1641354809757,0.05430771,46477.0,46469.0,0.354757]
[1641354810207,0.05430771,46477.0,46469.0,0.60632992]
[1641354811207,0.05430771,46477.0,46472.0,0.053813]
[1641354812808,0.05430757,46477.0,46472.0,0.053813]
[1641354814660,0.05430757,46477.0,46470.0,0.053815]
[1641354814859,0.05430757,46477.0,46468.0,2.32515932]
[1641354815058,0.05430757,46477.0,46469.0,0.25627291]
[1641354815657,0.05430757,46477.0,46469.0,0.30863609]
[1641354816061,0.05430757,46477.0,46470.0,0.354757]
[1641354816859,0.05430757,46477.0,46472.0,0.05381083]
[1641354817259,0.05430757,46477.0,46472.0,0.10762183]
[1641354817609,0.05430757,46477.0,46468.0,2.43278324]
[1641354817809,0.053813,46477.0,46469.0,0.61426173]
[1641354818008,0.053813,46477.0,46473.0,0.05381098]
[1641354818613,0.059813,46477.0,46473.0,0.05381098]
[1641354818808,0.059813,46477.0,46473.0,0.10762198]
[1641354819412,0.059813,46477.0,46473.0,0.10753398]
[1641354819614,0.059813,46477.0,46471.0,0.05381286]
[1641354819814,0.103813,46477.0,46471.0,0.05381286]
[1641354820114,0.053815,46475.0,46471.0,0.10762586]
[1641354820915,0.05430955,46475.0,46471.0,0.10762586]
[1641354821118,0.05430955,46475.0,46471.0,0.053813]
[1641354821757,0.05430955,46475.0,46472.0,0.053813]
[1641354821957,0.00049455,46475.0,46472.0,0.053813]
[1641354822361,0.00049455,46475.0,46470.0,0.05381451]
[1641354823061,0.00118814,46474.0,46470.0,0.05381451]
[1641354823260,0.05500314,46474.0,46470.0,0.05381451]
[1641354826109,0.27500314,46474.0,46470.0,0.05381451]
[1641354826510,0.32500314,46474.0,46470.0,0.05381451]
[1641354826712,0.42500314,46474.0,46470.0,0.05381451]
[1641354827914,0.42500314,46474.0,46471.0,0.05381398]
[1641354828113,0.42500314,46474.0,46471.0,0.40857098]
[1641354828114,0.37118814,46474.0,46471.0,0.40857098]
[1641354828514,0.27118814,46474.0,46471.0,0.40857098]
[1641354828867,0.37118814,46474.0,46471.0,0.05381398]
[1641354829061,0.37118814,46474.0,46469.0,0.05381631]
[1641354829461,0.37118814,46474.0,46468.0,0.285338]
[1641354829862,0.27118814,46474.0,46468.0,0.285338]
[1641354830062,0.27118814,46474.0,46469.0,0.354757]
[1641354830465,0.25382369,46473.0,46470.0,0.05381519]
[1641354830666,0.053818,46472.0,46468.0,0.285338]
[1641354830863,0.053818,46472.0,46468.0,0.000538]
[1641354831062,0.28624719,46471.0,46468.0,0.000538]
[1641354831468,0.30223383,46470.0,46468.0,0.000538]
[1641354831663,0.28624719,46471.0,46468.0,0.000538]
[1641354832164,0.28624719,46471.0,46469.0,0.053817]
[1641354832706,0.28724719,46471.0,46469.0,0.053817]
[1641354833012,0.28724719,46471.0,46469.0,0.10763359]
[1641354833608,0.34106619,46471.0,46468.0,0.000538]
[1641354834508,0.25433112,46470.0,46468.0,0.000538]
[1641354836763,0.25533112,46470.0,46468.0,0.000538]
[1641354837959,0.25433112,46470.0,46468.0,0.000538]
[1641354838760,0.25533112,46470.0,46468.0,0.000538]
[1641354839559,0.001,46470.0,46468.0,0.000538]
[1641354839961,0.34055786,46471.0,46468.0,0.000538]
[1641354840211,0.25373343,46470.0,46468.0,0.000538]
[1641354840614,0.25473343,46470.0,46468.0,0.000538]
[1641354841213,0.001,46470.0,46468.0,0.000538]
[1641354841411,0.001,46470.0,46469.0,0.354757]
[1641354842020,0.2567234,46470.0,46469.0,0.354757]
[1641354842216,0.2567234,46470.0,46468.0,0.05435326]
[1641354842614,0.2577234,46470.0,46468.0,0.05435326]
[1641354842914,0.26300759,46470.0,46468.0,0.05435326]
[1641354843115,0.26300759,46470.0,46468.0,0.000538]
[1641354843116,0.31682859,46470.0,46468.0,0.000538]
[1641354843316,0.2667067,46469.0,46465.0,0.05381961]
[1641354843515,0.2667067,46469.0,46461.0,0.004]
[1641354843716,0.054821,46470.0,46462.0,0.354757]
[1641354843968,0.053821,46470.0,46462.0,0.354757]
[1641354844773,0.053821,46470.0,46465.0,0.05382]
[1641354844970,0.00049459,46468.0,46466.0,0.273281]
[1641354850014,0.00147741,46467.0,46466.0,0.32709967]
[1641354850615,0.00147741,46467.0,46466.0,1.01709967]
[1641354850814,0.00147741,46467.0,46466.0,1.27330923]
[1641354852065,0.00147741,46467.0,46466.0,1.32330923]
[1641354852667,0.00147741,46467.0,46466.0,1.85330923]
[1641354852865,0.00147741,46467.0,46466.0,1.90712023]
[1641354854166,0.00147741,46467.0,46466.0,1.37712023]
[1641354854568,0.00147741,46467.0,46466.0,1.69712023]
[1641354855714,0.00147741,46467.0,46466.0,2.11712023]
[1641354856615,0.00147741,46467.0,46466.0,1.69712023]
[1641354860760,0.00147741,46467.0,46466.0,2.10712023]
[1641354862612,0.00147741,46467.0,46466.0,2.11298792]
[1641354862819,0.00147741,46467.0,46466.0,2.16298792]
[1641354863714,7.41e-06,46467.0,46466.0,2.20532023]
[1641354864113,7.41e-06,46467.0,46466.0,2.20660133]
[1641354864315,0.22,46474.0,46469.0,0.053799]
[1641354864512,0.22,46474.0,46473.0,2.63567162]
[1641354864914,0.22,46474.0,46473.0,2.68567162]
[1641354874264,0.22,46474.0,46473.0,2.68693214]
[1641354875065,0.22118811,46474.0,46473.0,2.68693214]
[1641354881364,0.22118811,46474.0,46473.0,0.32449452]
[1641354881565,0.22118811,46474.0,46473.0,0.58583387]
[1641354881963,0.22118811,46474.0,46473.0,0.32449452]
[1641354882365,0.22118811,46474.0,46473.0,0.273234]
[1641354883766,0.22118811,46474.0,46473.0,0.323234]
[1641354885814,0.22118811,46474.0,46473.0,0.57674979]
[1641354886215,0.22118811,46474.0,46473.0,0.323234]
[1641354887215,0.22118811,46474.0,46473.0,0.57485277]
[1641354889865,0.22118811,46474.0,46473.0,0.323234]
[1641354891771,0.22118811,46474.0,46473.0,0.58932001]
[1641354891975,0.22118811,46474.0,46473.0,0.84813301]
[1641354892171,0.22118811,46474.0,46473.0,1.69177546]
[1641354892372,0.00048768,46476.0,46473.0,0.69177546]
[1641354892618,0.00048768,46476.0,46475.0,0.73428949]
[1641354892817,0.01187877,46484.0,46476.0,0.599]
[1641354893017,0.00048756,46477.0,46476.0,0.599]
[1641354893220,0.00048756,46477.0,46476.0,1.15981523]
[1641354894321,0.00048756,46477.0,46476.0,1.21361223]
[1641354896219,0.00048756,46477.0,46476.0,0.872088]
[1641354897668,0.053803,46486.0,46476.0,0.872088]
[1641354897869,0.053803,46486.0,46478.0,0.10760477]
[1641354898070,0.053803,46486.0,46480.0,0.05]
[1641354898470,0.053803,46486.0,46478.0,0.15760477]
[1641354898670,0.103803,46486.0,46479.0,0.354757]
[1641354898870,0.103803,46486.0,46482.0,0.05380181]
[1641354899070,0.103803,46486.0,46478.0,0.15760477]
[1641354899270,0.053803,46484.0,46478.0,0.15760477]
[1641354899473,0.107608,46484.0,46479.0,0.354757]
[1641354900115,0.053803,46484.0,46479.0,0.354757]
[1641354900915,0.05429066,46484.0,46480.0,0.053803]
[1641354901114,0.05429066,46484.0,46481.0,0.32684386]
[1641354901315,0.05429066,46484.0,46481.0,0.05380286]
[1641354902715,0.10809566,46484.0,46481.0,0.05380286]
[1641354904570,0.00048766,46484.0,46481.0,0.10760486]
[1641354904773,0.00048766,46484.0,46481.0,0.05380286]
[1641354905270,0.00048766,46484.0,46482.0,0.05]
[1641354905572,0.00048766,46484.0,46482.0,0.10380364]
[1641354906571,0.00048766,46484.0,46482.0,0.15760464]
[1641354906972,0.00048766,46484.0,46482.0,0.10380364]
[1641354906973,0.00548766,46484.0,46482.0,0.10380364]
[1641354907815,0.112608,46484.0,46482.0,0.10380364]
[1641354908011,0.005,46484.0,46482.0,0.10380364]
[1641354908212,0.42663737,46488.0,46484.0,0.05380023]
[1641354908412,0.354757,46487.0,46482.0,0.05]
[1641354908611,0.1,46487.0,46481.0,0.05]
[1641354908812,0.106,46487.0,46478.0,0.05]
[1641354909013,0.053803,46484.0,46481.0,0.053803]
[1641354910018,0.053803,46484.0,46481.0,0.10760554]
[1641354910218,0.05498884,46486.0,46481.0,0.053803]
[1641354910416,0.05498884,46486.0,46480.0,0.10760037]
[1641354910615,0.05498884,46486.0,46481.0,0.05]
[1641354910814,0.05598884,46486.0,46481.0,0.05]
[1641354911015,0.05598884,46486.0,46484.0,0.05380138]
[1641354911215,0.00218784,46486.0,46484.0,0.05380138]
[1641354911660,0.00218784,46486.0,46481.0,0.05]
[1641354911859,0.00218784,46486.0,46478.0,0.05]
[1641354912060,0.00118784,46486.0,46478.0,0.05]
[1641354912260,0.00118784,46486.0,46483.0,0.05380282]
[1641354912261,0.05498884,46486.0,46483.0,0.05380282]
[1641354912563,0.05498884,46486.0,46478.0,0.157602]
[1641354912961,0.05898884,46486.0,46478.0,0.157602]
[1641354913461,0.05898884,46486.0,46482.0,0.053802]
[1641354914060,0.05498884,46486.0,46482.0,0.053802]
[1641354914662,0.05498884,46486.0,46481.0,0.1038046]
[1641354914860,0.05598884,46486.0,46481.0,0.045]
[1641354915121,0.05598884,46486.0,46480.0,0.053804]
[1641354915516,0.053805,46484.0,46480.0,0.053804]
[1641354916816,0.058805,46484.0,46480.0,0.053804]
[1641354917115,0.053805,46483.0,46482.0,0.05380354]
[1641354918868,0.059805,46483.0,46482.0,0.05380354]
[1641354919070,0.006,46483.0,46482.0,0.05380354]
[1641354919271,0.006,46483.0,46482.0,0.10380354]
[1641354920074,0.00048483,46484.0,46482.0,0.10380354]
[1641354920972,0.00548483,46484.0,46482.0,0.10380354]
[1641354921774,0.00548483,46484.0,46482.0,0.15760354]
[1641354921973,0.00548483,46484.0,46483.0,0.354757]
[1641354922173,0.00048483,46484.0,46483.0,0.354757]
[1641354922822,0.00118784,46486.0,46483.0,0.354757]
[1641354923014,0.004,46484.0,46483.0,0.053797]
[1641354924218,0.00118784,46486.0,46484.0,0.05380016]
[1641354924617,0.00118784,46486.0,46484.0,0.10380016]
[1641354925020,0.00918784,46486.0,46484.0,0.10380016]
[1641354926667,0.00118784,46486.0,46484.0,0.10380016]
[1641354926867,0.00718784,46486.0,46484.0,0.10380016]
[1641354927470,0.06098884,46486.0,46484.0,0.10380016]
[1641354927770,0.06098884,46486.0,46484.0,0.05380016]
[1641354927971,0.354757,46485.0,46484.0,0.05380016]
[1641354928368,0.05498884,46486.0,46484.0,0.05380016]
[1641354928770,0.00118784,46486.0,46484.0,0.05380016]
[1641354928972,0.01118784,46486.0,46484.0,0.05380016]
[1641354930217,0.00118784,46486.0,46484.0,0.10380016]
[1641354931020,0.00718784,46486.0,46484.0,0.10380016]
[1641354932920,0.01318784,46486.0,46484.0,0.10380016]
[1641354933718,0.06698884,46486.0,46484.0,0.10380016]
[1641354934165,0.05498884,46486.0,46484.0,0.10380016]
[1641354934365,0.00118784,46486.0,46484.0,0.10380016]
[1641354934968,0.01018784,46486.0,46484.0,0.10380016]
[1641354935167,0.06398884,46486.0,46484.0,0.05380016]
[1641354935365,0.06398884,46486.0,46484.0,0.10380016]
[1641354936166,0.05498884,46486.0,46484.0,0.10380016]
[1641354936965,0.06498884,46486.0,46484.0,0.10380016]
[1641354937618,0.06498884,46486.0,46484.0,0.05]
[1641354937819,0.06498884,46486.0,46478.0,0.393902]
[1641354938019,0.06498884,46486.0,46481.0,0.053803]
[1641354938220,0.05498884,46486.0,46479.0,0.10760426]
[1641354938823,0.05498884,46486.0,46478.0,0.443902]
[1641354939023,0.00118784,46486.0,46483.0,0.0538]
[1641354939226,0.00118784,46486.0,46482.0,0.10759735]
[1641354939624,0.00118784,46486.0,46482.0,0.15759735]
[1641354940023,0.00118784,46486.0,46484.0,0.05379995]
[1641354940523,0.00118784,46486.0,46484.0,0.10379995]
[1641354940925,0.01018784,46486.0,46484.0,0.10379995]
[1641354942168,0.00118784,46486.0,46484.0,0.10379995]
[1641354943068,0.00718784,46486.0,46484.0,0.10379995]
[1641354943867,0.00718784,46486.0,46484.0,0.05379995]
[1641354944068,0.00118784,46486.0,46484.0,0.05379995]
[1641354944868,0.00718784,46486.0,46484.0,0.05379995]
[1641354945125,0.06098884,46486.0,46484.0,0.05379995]
[1641354945622,0.06098884,46486.0,46484.0,0.10379995]
[1641354946326,0.05498884,46486.0,46484.0,0.05379995]
[1641354947027,0.06098884,46486.0,46484.0,0.05379995]
[1641354948224,0.05498884,46486.0,46484.0,0.05379995]
[1641354948878,0.06398884,46486.0,46484.0,0.05379995]
[1641354950175,0.05498884,46486.0,46484.0,0.05379995]
[1641354950384,0.05498884,46486.0,46484.0,0.1076]
[1641354950385,0.00118684,46486.0,46484.0,0.1076]
[1641354950976,0.00818684,46486.0,46484.0,0.1076]
[1641354952175,0.00118684,46486.0,46484.0,0.1076]
[1641354952620,0.00048771,46487.0,46484.0,0.1076]
[1641354952820,0.153798,46488.0,46484.0,0.1076]
[1641354953019,0.005,46486.0,46484.0,0.1076]
[1641354953823,0.005,46486.0,46485.0,0.053797]
[1641354954220,0.053799,46487.0,46484.0,0.1076]
[1641354955019,0.060799,46487.0,46484.0,0.1076]
[1641354955920,0.060799,46487.0,46485.0,0.053799]
[1641354956120,0.053799,46487.0,46485.0,0.053799]
[1641354956968,0.062799,46487.0,46485.0,0.053799]
[1641354958168,0.053799,46487.0,46485.0,0.053799]
[1641354958868,0.060799,46487.0,46485.0,0.053799]
[1641354961023,0.003,46487.0,46485.0,0.053799]
[1641354962225,0.05428288,46488.0,46485.0,0.053799]
[1641354962624,0.053798,46488.0,46485.0,0.053799]
[1641354962923,0.060798,46488.0,46485.0,0.053799]
[1641354964274,0.053798,46488.0,46485.0,0.053799]
[1641354965071,0.060798,46488.0,46485.0,0.053799]
[1641354966172,0.053798,46488.0,46485.0,0.053799]
[1641354966975,0.053798,46488.0,46484.0,0.053809]
[1641354966976,0.78260772,46487.0,46484.0,0.053809]
[1641354967173,0.78260772,46487.0,46473.0,0.01187842]
[1641354967174,0.354757,46485.0,46473.0,0.01187842]
[1641354967373,0.32785072,46484.0,46473.0,0.01187842]
[1641354967626,0.57785072,46484.0,46473.0,0.01187842]
[1641354967823,0.41018956,46483.0,46473.0,0.01187842]
[1641354968023,0.34332503,46478.0,46473.0,0.01187842]
[1641354968224,0.35652869,46477.0,46471.0,0.3027]
[1641354968624,0.45652869,46477.0,46471.0,0.3027]
[1641354968823,0.45652869,46477.0,46475.0,0.053819]
[1641354969024,0.47252869,46477.0,46475.0,0.053819]
[1641354969225,0.76219117,46477.0,46475.0,0.053819]
[1641354970328,0.74619117,46477.0,46475.0,0.053819]
[1641354970927,0.75719117,46477.0,46475.0,0.053819]
[1641354971574,0.75719117,46477.0,46468.0,1.1589]
[1641354971575,0.75719117,46477.0,46473.0,0.053821]
[1641354971776,1.16194817,46477.0,46467.0,0.0012327]
[1641354971982,1.11194817,46477.0,46467.0,0.0012327]
[1641354972174,1.10094817,46477.0,46467.0,0.0012327]
[1641354972374,1.09594817,46477.0,46467.0,0.0012327]
[1641354972875,1.09594817,46477.0,46475.0,0.053819]
[1641354973073,1.10694817,46477.0,46475.0,0.053819]
[1641354974375,1.09594817,46477.0,46475.0,0.053819]
[1641354974977,1.15694817,46477.0,46475.0,0.053819]
[1641354975829,1.15694817,46477.0,46474.0,0.053821]
[1641354976228,1.14594817,46477.0,46474.0,0.053821]
[1641354976631,1.14094817,46477.0,46474.0,0.053821]
[1641354977029,1.15394817,46477.0,46474.0,0.053821]
[1641354978033,1.15394817,46477.0,46468.0,0.053827]
[1641354978034,2.16361304,46477.0,46468.0,0.053827]
[1641354978232,2.15061304,46477.0,46468.0,0.053827]
[1641354979078,2.16161304,46477.0,46468.0,0.053827]
[1641354979679,2.12161304,46477.0,46469.0,0.053825]
[1641354979881,2.11661304,46477.0,46469.0,0.053825]
[1641354980281,2.10561304,46477.0,46469.0,0.053825]
[1641354980981,2.11980107,46477.0,46469.0,0.053825]
[1641354981282,1.37410107,46477.0,46468.0,0.107644]
[1641354981482,1.0151362,46477.0,46468.0,0.107644]
[1641354982281,1.0021362,46477.0,46468.0,0.107644]
[1641354982484,1.0521362,46477.0,46468.0,0.107644]